Cogmind - Beta 16.1 @@@ ROGUE MODE // 2026.03.19 @ 20:55:09 Player: Ceorik Result: Self-destructed Performance ------------- Evolutions (3) 1500 Regions Visited (8) 1600 Robots Destroyed (38) 190 Value Destroyed (1166) 1166 Prototype IDs (28) 560 Alien Tech Used (0) 0 Bonus (428) 428 TOTAL SCORE: 5444 Bonus ------- Follower Combat Kills 128 Aligned with FarCom 300 Cogmind --------- Core Integrity 455/700 Matter 300/300 Energy 310/310 System Corruption 0% Temperature Cool (0) Movement Hovering (112) Ox1 Location -6/Zion Parts ------- > --- POWER (1) -------- Cooled Deuterium Engine > --- PROPULSION (3) --- Gravmag System Gravmag System Gravmag System > --- UTILITY (6) ------ Improved Heat Sink Large Storage Unit Core Analyzer Weapon Cycler Makeshift Utility Shielding > --- WEAPON (3) ------- AWS/Thermal Chainsword > --- INVENTORY (15) --- Cooled Deuterium Engine Cooled Deuterium Engine Wheel Armored Huge Wheel Gravmag System Medium Battery (150) Compact Matter Pod (150) Improved Power Shielding Makeshift Light Armor Plating Improved EM Pulse Cannon Heavy Ion Cannon Heavy Plasma Cannon Gauss Cannon Proton Missile Launcher Peak State ------------ > --- POWER ------------ Cooled Deuterium Engine > --- PROPULSION ------- Gravmag System Gravmag System Gravmag System > --- UTILITY ---------- Improved Heat Sink Large Storage Unit Core Analyzer Weapon Cycler Makeshift Utility Shielding > --- WEAPON ----------- AWS/Thermal Chainsword > --- INVENTORY -------- Cooled Deuterium Engine Cooled Deuterium Engine Wheel Armored Huge Wheel Gravmag System Medium Battery Compact Matter Pod Improved Power Shielding Makeshift Light Armor Plating Improved EM Pulse Cannon Heavy Ion Cannon Heavy Plasma Cannon Gauss Cannon Proton Missile Launcher [Rating: 58] Favorites ----------- Power Cooled Deuterium Engine Engine Cooled Deuterium Engine Power Core Light Nuclear Core Propulsion Wheel Treads Light Treads Wheel Wheel Hover Unit Gravmag System Utility Improved Heat Sink Device Improved Heat Sink Storage Large Storage Unit Processor Core Analyzer Protection Improved Light Armor Plating Weapon Chainsword Energy Gun AWS/Thermal Energy Cannon Ion Cannon Ballistic Gun Light Assault Rifle Launcher Proton Missile Launcher Impact Weapon Heavy Hammer Slashing Weapon Chainsword Build | -11 -10 -10 -10 -9 -8 -7 -7 -6 ------- Run | Yrd Mat Min Exi Min Mat Fac Low Zio Slots Evolved 6 | . . . . . 4 2 . . Power . | . . . . . . . . . Propulsion 1 | . . . . . 1 . . . Utility 4 | . . . . . 2 2 . . Weapon 1 | . . . . . 1 . . . Parts Attached 43 | 6 9 . . . 8 10 9 1 Power 6 | 1 2 . . . 2 1 . . Engine 4 | 1 . . . . 2 1 . . Core 2 | . 2 . . . . . . . Reactor . | . . . . . . . . . Propulsion 12 | 2 3 . . . 2 1 4 . Treads 2 | 2 . . . . . . . . Leg . | . . . . . . . . . Wheel 6 | . 3 . . . 2 . 1 . Hover 4 | . . . . . . 1 3 . Flight . | . . . . . . . . . Utility 13 | 1 3 . . . 2 5 1 1 Device 6 | . 1 . . . 1 3 1 . Storage 3 | 1 2 . . . . . . . Processor 1 | . . . . . . 1 . . Hackware . | . . . . . . . . . Protection 3 | . . . . . 1 1 . 1 Artifact . | . . . . . . . . . Weapon 12 | 2 1 . . . 2 3 4 . Energy Gun 2 | . 1 . . . . . 1 . Energy Cannon 5 | . . . . . 1 2 2 . Ballistic Gun 2 | 2 . . . . . . . . Ballistic Cannon . | . . . . . . . . . Launcher 1 | . . . . . . . 1 . Special Weapon . | . . . . . . . . . Impact Weapon 1 | . . . . . 1 . . . Slashing Weapon 1 | . . . . . . 1 . . Piercing Weapon . | . . . . . . . . . Special Melee Weapon . | . . . . . . . . . Unidentified Prototypes 3 | . . . . . 1 2 . . Parts Lost 14 | . 3 . . . 2 2 7 . Power 1 | . . . . . 1 . . . Propulsion 7 | . 2 . . . 1 1 3 . Utility 3 | . . . . . . . 3 . Weapon 3 | . 1 . . . . 1 1 . Highest Loss Streak 6 | . 1 . . . 2 1 6 . To Critical Strikes . | . . . . . . . . . Average Backups 11 | 2 6 10 10 11 12 13 11 13 Power 2 | . 2 3 3 3 2 2 2 2 Propulsion 2 | 1 1 3 3 3 . 3 2 2 Utility 2 | . . 1 1 1 2 3 3 3 Weapon 4 | . 2 3 3 4 6 4 4 5 Tool/Special . | . . . . . . . . . Unused Backups 20 | . . . . . . 10 . 10 Power 4 | . . . . . . 2 . 2 Propulsion 2 | . . . . . . . . 2 Utility 5 | . . . . . . 1 . 4 Weapon 9 | . . . . . . 7 . 2 Tool/Special . | . . . . . . . . . Average Slot Usage (%) 89 | . 91 100 100 100 90 95 74 79 Engine 5 | . 4 . . . 4 7 7 7 Core 4 | . 9 14 14 14 3 . . . Treads 2 | . 12 . . . . . . . Wheel 13 | . 15 28 28 28 25 16 2 . Hover 8 | . . . . . . 4 17 23 Device 14 | . 5 14 14 14 16 21 12 15 Storage 9 | . 14 14 14 14 9 7 7 7 Processor 3 | . . . . . . 6 7 7 Protection 3 | . . . . . 3 7 1 3 Energy Gun 5 | . 2 14 14 14 9 1 5 7 Energy Cannon 2 | . . . . . 8 7 1 . Ballistic Gun 7 | . 25 14 14 14 . . . . Impact Weapon 2 | . . . . . 8 7 2 . Slashing Weapon 3 | . . . . . . 4 7 7 Peak Build Rating 58 | 6 12 12 13 13 24 45 53 58 Average Rating 32 | 4 9 12 12 13 22 38 47 55 On Entrance 19 | . 6 12 12 13 13 24 45 53 Avg Prop Armor Cover (%) 5 | . 12 . . . . 4 4 . Naked Turns . | . . . . . . . . . Heaviest Build 52 | 13 28 28 28 28 45 52 52 45 Greatest Support 40 | 40 40 20 20 20 30 30 27 27 Greatest Overweight (x) 2 | . 1 1 1 1 2 2 2 1 Average Overweight (x) 1 | . . 1 1 1 1 1 1 1 Largest Inventory Capacity 15 | 8 15 15 15 15 15 15 15 15 Average Capacity 13 | 7 8 15 15 15 15 15 15 15 Most Carried 15 | 4 10 10 12 12 15 15 15 15 Average Carried 12 | 2 6 10 10 12 13 14 12 14 Final Capacity 15 | 8 15 15 15 15 15 15 15 15 Final Carried 15 | 4 10 10 12 12 14 15 12 15 Class Distribution -------------------- 71% | Mutant 12% | Assassin 9% | Scavenger-Assassin 7% | Scavenger-Mutant Dominant Class ---------------- Mutant | -10/Materials Mutant | -10/Mines Mutant | -10/Exiles Mutant | -9/Mines Mutant | -8/Materials Assassin | -7/Factory Mutant | -7/Lower Caves Mutant | -6/Zion Resources | -11 -10 -10 -10 -9 -8 -7 -7 -6 ----------- Run | Yrd Mat Min Exi Min Mat Fac Low Zio Matter Collected 1003 | 221 352 5 . . 60 265 90 10 Remotely . | . . . . . . . . . Salvage Created 1657 | . 641 . . . 236 388 392 . Parts 104 | . 57 . . . 8 23 16 . Haulers Intercepted 3 | . 1 . . . 1 1 . . Recyclers Shooed 1 | . . . . . 1 . . . Parts Field Recycled . | . . . . . . . . . Retrieved Matter . | . . . . . . . . . Parts Self-Destructed 14 | . . . . . . . 11 3 Prevented 5 | . . . . . . . 5 . Parts Restored . | . . . . . . . . . Kills | -11 -10 -10 -10 -9 -8 -7 -7 -6 ------- Run | Yrd Mat Min Exi Min Mat Fac Low Zio Combat Hostiles Destroyed 28 | . 16 . . . 2 3 7 . Melee 1 | . . . . . . 1 . . Guns 23 | . 16 . . . . . 7 . Cannons 3 | . . . . . 2 1 . . Classes Destroyed 10 | . 4 . . . 2 3 1 . Worker 3 | . 1 . . . . 2 . . Builder 1 | . . . . . . 1 . . Hauler 3 | . 1 . . . 1 1 . . Recycler 2 | . . . . . 1 1 . . Watcher 1 | . . . . . . 1 . . Swarmer 4 | . 3 . . . . . 1 . Grunt 18 | . 13 . . . 1 . 4 . Sentry 4 | . . . . . 1 2 1 . Programmer 1 | . . . . . . 1 . . Behemoth 1 | . . . . . . . 1 . Best Kill Streak 5 | . 3 . . . 2 3 5 . Combat Bots Only 5 | . 3 . . . 1 1 5 . Max Kills in Single Turn 1 | . 1 . . . 1 1 1 . Gunslinging . | . . . . . . . . . Exploded . | . . . . . . . . . Melee 1 | . . . . . . 1 . . Uniques/NPCs Destroyed . | . . . . . . . . . Combat | -11 -10 -10 -10 -9 -8 -7 -7 -6 -------- Run | Yrd Mat Min Exi Min Mat Fac Low Zio Hostile Shots Fired 267 | . 90 5 . . 39 52 81 . Missed 96 | . 25 1 . . 15 27 28 . Hits 171 | . 65 4 . . 24 25 53 . Projectile 171 | . 65 4 . . 24 25 53 . Critical Strikes 9 | . 3 . . . 2 1 3 . Damage Taken 2429 | . 782 71 . . 333 209 1034 . Core 474 | . 125 32 . . 72 42 203 . Absorbed by Shields . | . . . . . . . . . Regen/Repaired (Parts) 84 | . . . . . . . . 84 Core Remaining (%) 74 | 100 . . . 37 86 . . . Volleys Fired 89 | . 54 5 . . 13 5 12 . Largest 2 | . 2 2 . . 1 1 1 . Hottest 75 | . 60 60 . . 60 75 69 . Shots Fired 176 | . 107 10 . . 13 5 41 . Gun 146 | . 107 10 . . . . 29 . Cannon 30 | . . . . . 13 5 12 . Launcher . | . . . . . . . . . Special . | . . . . . . . . . Kinetic 111 | . 106 5 . . . . . . Thermal 53 | . 1 5 . . 13 5 29 . Explosive . | . . . . . . . . . Electromagnetic 12 | . . . . . . . 12 . Robot Hit Streak 23 | . 23 3 . . 4 4 11 . Robot Miss Streak 6 | . 6 2 . . 1 1 2 . Penetration Max . | . . . . . . . . . Secondary Targets . | . . . . . . . . . Autonomous 29 | . . . . . . . 29 . Shots Hit Robots 135 | . 65 6 . . 11 19 34 . Core Hits 58 | . 34 . . . 4 5 15 . Critical Kills 1 | . . . . . 1 . . . Critical Parts Destroyed 2 | . 1 . . . . 1 . . Critical Strikes 6 | . 1 . . . 1 4 . . Meltdown 1 | . . . . . 1 . . . Destroy 1 | . 1 . . . . . . . Smash 1 | . . . . . . 1 . . Sever 3 | . . . . . . 3 . . Melee Attacks 20 | . . . . . . 19 . 1 Impact 6 | . . . . . . 6 . . Slashing 14 | . . . . . . 13 . 1 Piercing . | . . . . . . . . . Sneak Attacks 5 | . . . . . . 5 . . Combat Hostiles . | . . . . . . . . . Follow-up Attacks 3 | . . . . . . 3 . . Damage Inflicted 2796 | . 737 68 . . 257 816 918 . Guns 1541 | . 736 68 . . . . 737 . Cannons 533 | . . . . . 257 95 181 . Explosions . | . . . . . . . . . Melee 721 | . . . . . . 721 . . Ramming 1 | . 1 . . . . . . . Kinetic 769 | . 725 44 . . . . . . Thermal 1124 | . 11 24 . . 257 95 737 . Explosive . | . . . . . . . . . Electromagnetic 181 | . . . . . . . 181 . Impact 92 | . . . . . . 92 . . Slashing 629 | . . . . . . 629 . . Piercing . | . . . . . . . . . Highest Corruption . | . . . . . . . . . Average Corruption . | . . . . . . . . . Corruption Purged . | . . . . . . . . . Corruption Blocked . | . . . . . . . . . Overload Shots . | . . . . . . . . . Overflow Damage 139 | . . . . . . 139 . . Projectiles . | . . . . . . . . . Explosions . | . . . . . . . . . Melee 139 | . . . . . . 139 . . Knockbacks . | . . . . . . . . . Impact . | . . . . . . . . . Kinetic . | . . . . . . . . . Secondary . | . . . . . . . . . Self-Inflicted Damage . | . . . . . . . . . Shots . | . . . . . . . . . Rammed 1 | . 1 . . . . . . . Targets Rammed 1 | . 1 . . . . . . . Kicked . | . . . . . . . . . Crushed . | . . . . . . . . . Highest Temperature 39 | . 39 18 . . 33 3 3 . Average Temperature 9 | . 9 10 . . 21 3 2 . Received Heat Transfer 1005 | . 441 39 . . 180 60 285 . Siege Activations . | . . . . . . . . . Martial Activations . | . . . . . . . . . Shielding Activations . | . . . . . . . . . Robots Disrupted . | . . . . . . . . . Combat Hostiles . | . . . . . . . . . Robots Corrupted 1 | . . . . . . 1 . . Combat Hostiles 1 | . . . . . . 1 . . Parts Fried 3 | . . . . . . 1 2 . Impact Corruptions 2 | . . . . . . 2 . . Robots Melted 1 | . . . . . 1 . . . Combat Hostiles . | . . . . . . . . . Parts Melted 3 | . . . . . 2 . 1 . Heat Transferred 1555 | . 25 50 . . 407 148 925 . Parts Sabotaged . | . . . . . . . . . Parts Stolen . | . . . . . . . . . Parts Stripped . | . . . . . . . . . Power Chain Reactions . | . . . . . . . . . Alert | -11 -10 -10 -10 -9 -8 -7 -7 -6 ------- Run | Yrd Mat Min Exi Min Mat Fac Low Zio Maximum Alert Level . | . . . . . . . . . Low Security (%) 100 | 100 100 100 . 100 100 100 . . Level 1 . | . . . . . . . . . Level 2 . | . . . . . . . . . Level 3 . | . . . . . . . . . Level 4 . | . . . . . . . . . Level 5 . | . . . . . . . . . High Security . | . . . . . . . . . Max Security . | . . . . . . . . . Peak Influence 180 | . 180 58 . . 41 44 . . Initial 57 | . . 57 . . . 13 . . Average 28 | . 69 30 . . 8 6 . . Influence Increases 1084 | . 444 58 . . 155 162 265 . Destroy 0b10 Robot/C 640 | . 320 40 . . 80 60 140 . Destroy 0b10 Robot/NC 50 | . 10 . . . 10 30 . . Destroy Leader 158 | . 62 10 . . 32 34 20 . Allied During Kill 17 | . . 8 . . 9 . . . Successful Hack 69 | . 22 . . . 9 38 . . Lose Combat Pursuer 150 | . 30 . . . 15 . 105 . Influence Decreases 1084 | . 296 188 18 . 125 171 111 175 Entered New Map 310 | . . 91 18 . . 17 9 175 Time Decay 664 | . 266 97 . . 65 154 82 . Lost Part 70 | . 30 . . . 20 . 20 . Lost Ally 40 | . . . . . 40 . . . Squads Dispatched 9 | . 3 . . . 3 3 . . Investigation 3 | . 2 . . . 1 . . . Extermination 2 | . . . . . . 2 . . Reinforcement 4 | . 1 . . . 2 1 . . Assault . | . . . . . . . . . Garrison . | . . . . . . . . . Intercept . | . . . . . . . . . Searches Triggered . | . . . . . . . . . Construction Impeded . | . . . . . . . . . Haulers Reinforced 1 | . . . . . . 1 . . Active Scanning Responses . | . . . . . . . . . Cargo Convoy Interrupts . | . . . . . . . . . Stealth | -11 -10 -10 -10 -9 -8 -7 -7 -6 --------- Run | Yrd Mat Min Exi Min Mat Fac Low Zio Distress Signals 8 | . 3 . . . 5 . . . Communications Jammed . | . . . . . . . . . Distress Signals . | . . . . . . . . . Times Spotted 70 | . 27 2 . . 22 8 11 . Peak Tracking Total 9 | . 6 2 . . 8 2 9 . Tactical Retreats 8 | . 2 . . . 4 . 2 . ECM-based Alert Blocks 18 | . . . . . 18 . . . Traps | -11 -10 -10 -10 -9 -8 -7 -7 -6 ------- Run | Yrd Mat Min Exi Min Mat Fac Low Zio Traps Triggered 4 | . 4 . . . . . . . Indirectly . | . . . . . . . . . Trap Hack Attempts . | . . . . . . . . . Triggered . | . . . . . . . . . Disarmed . | . . . . . . . . . Reprogrammed . | . . . . . . . . . Reused . | . . . . . . . . . Traps Extracted . | . . . . . . . . . Installed . | . . . . . . . . . Triggered . | . . . . . . . . . Machines | -11 -10 -10 -10 -9 -8 -7 -7 -6 ---------- Run | Yrd Mat Min Exi Min Mat Fac Low Zio Machines Disabled . | . . . . . . . . . Max in Single Turn . | . . . . . . . . . Machines Repaired . | . . . . . . . . . Machines Dismantled . | . . . . . . . . . Machines Sabotaged . | . . . . . . . . . Overloaded Fab Kills . | . . . . . . . . . Hacking | -11 -10 -10 -10 -9 -8 -7 -7 -6 --------- Run | Yrd Mat Min Exi Min Mat Fac Low Zio Machines Accessed 14 | . 6 . 2 . 1 5 . . Terminals 9 | . 5 . . . 1 3 . . Fabricators . | . . . . . . . . . Repair Stations . | . . . . . . . . . Recycling Units 1 | . 1 . . . . . . . Scanalyzers 1 | . . . . . . 1 . . Garrison Access 1 | . . . . . . 1 . . Total Hacks 24 | . 12 . 2 . 2 8 . . Successful 11 | . 4 . 2 . 2 3 . . Failed 12 | . 8 . . . . 4 . . Catastrophic 2 | . . . . . . 2 . . Database Lockouts 1 | . . . . . . 1 . . Manual 3 | . . . 1 . . 1 . 1 Terminals 17 | . 11 . . . 2 4 . . Fabricators . | . . . . . . . . . Repair Stations . | . . . . . . . . . Recycling Units 1 | . 1 . . . . . . . Scanalyzers 3 | . . . . . . 3 . . Garrison Access 1 | . . . . . . 1 . . Terminal Hacks 8 | . 3 . 2 . 2 1 . . Record 1 | . . . 1 . . . . . Robot Analysis 1 | . 1 . . . . . . . Prototype ID Bank 1 | . . . . . 1 . . . Level Access Points 1 | . 1 . . . . . . . Emergency Access Points 2 | . . . . . 1 1 . . Alert Level 1 | . 1 . . . . . . . Proto ID Catalog 1 | . . . 1 . . . . . Fabricator Hacks . | . . . . . . . . . Repair Station Hacks . | . . . . . . . . . Recycling Unit Hacks 1 | . 1 . . . . . . . Report Inventory 1 | . 1 . . . . . . . Scanalyzer 2 | . . . . . . 2 . . Retrieve Study 2 | . . . . . . 2 . . Garrison Access Hacks . | . . . . . . . . . Unauthorized Hacks . | . . . . . . . . . Terminals . | . . . . . . . . . Fabricators . | . . . . . . . . . Repair Stations . | . . . . . . . . . Recycling Units . | . . . . . . . . . Scanalyzers . | . . . . . . . . . Garrison Access . | . . . . . . . . . Data Cores Recovered . | . . . . . . . . . Used . | . . . . . . . . . Hacking Detections 9 | . 4 . . . 1 4 . . Full Trace Events . | . . . . . . . . . Feedback Events . | . . . . . . . . . Feedback Blocked . | . . . . . . . . . Robot Schematics Acquired . | . . . . . . . . . Robots Built . | . . . . . . . . . Authchips . | . . . . . . . . . Time . | . . . . . . . . . Total Robot Build Rating . | . . . . . . . . . Part Schematics Acquired . | . . . . . . . . . Parts Built . | . . . . . . . . . Authchips . | . . . . . . . . . Time . | . . . . . . . . . Total Part Build Rating . | . . . . . . . . . Part Studies Acquired 2 | . . . . . . 2 . . Parts Repaired . | . . . . . . . . . Time . | . . . . . . . . . Parts Recycled . | . . . . . . . . . Recycled Matter . | . . . . . . . . . Retrieved Matter . | . . . . . . . . . Retrieved Components . | . . . . . . . . . Parts Scanalyzed . | . . . . . . . . . Part Schematics Acquired . | . . . . . . . . . Parts Damaged . | . . . . . . . . . Bothacking | -11 -10 -10 -10 -9 -8 -7 -7 -6 ------------ Run | Yrd Mat Min Exi Min Mat Fac Low Zio Used RIF Installer . | . . . . . . . . . Robots Hacked . | . . . . . . . . . Non-combat . | . . . . . . . . . Combat . | . . . . . . . . . Robot Hacks Applied . | . . . . . . . . . Relay Couplers Released . | . . . . . . . . . Fabnet Peak Effective % . | . . . . . . . . . Robots Rewired . | . . . . . . . . . Allies Hacked . | . . . . . . . . . Hacks Repelled . | . . . . . . . . . Allies | -11 -10 -10 -10 -9 -8 -7 -7 -6 -------- Run | Yrd Mat Min Exi Min Mat Fac Low Zio Total Allies 6 | . . 3 . . . . . 3 Largest Group 3 | . . 3 3 3 3 . . 3 Highest-Rated Group 93 | . . 40 40 40 40 . . 93 Highest-Rated Ally 31 | . . 16 16 16 16 . . 31 Total Orders 2 | . . . 2 . . . . . STAY 1 | . . . 1 . . . . . FOLLOW 1 | . . . 1 . . . . . Ally Attacks 31 | . . 11 . . 20 . . . Total Damage 332 | . . 141 . . 191 . . . Kills 4 | . . 2 . . 2 . . . Allies Corrupted . | . . . . . . . . . Allies Melted . | . . . . . . . . . Intel | -11 -10 -10 -10 -9 -8 -7 -7 -6 ------- Run | Yrd Mat Min Exi Min Mat Fac Low Zio Active Infowar (turns) 944 | . . . . . 59 864 21 . Terrain 885 | . . . . . . 864 21 . ECM 59 | . . . . . 59 . . . Robot Analysis Total 1 | . 1 . . . . . . . Derelict Logs Recovered 3 | . . 1 . 1 . . . 1 Drone Launches . | . . . . . . . . . Drone Recoveries . | . . . . . . . . . Exploration | -11 -10 -10 -10 -9 -8 -7 -7 -6 ------------- Run | Yrd Mat Min Exi Min Mat Fac Low Zio Turns Passed 3939 | 76 806 217 253 72 273 1010 201 1031 Spaces Moved 3129 | 44 557 198 215 67 201 827 122 898 Core 6 | 6 . . . . . . . . Treads 171 | 38 133 . . . . . . . Legs . | . . . . . . . . . Wheels 1940 | . 424 198 215 67 201 827 8 . Hover 1012 | . . . . . . . 114 898 Flight . | . . . . . . . . . Fastest Speed 50 | 50 80 95 95 95 80 95 110 112 Average Speed 106 | 145 103 95 95 95 96 105 123 112 Slowest Speed 176 | 160 160 95 95 95 110 110 176 112 Overloaded Moves . | . . . . . . . . . Propulsion Burnouts . | . . . . . . . . . Robots Hopped . | . . . . . . . . . Potential Cave-ins . | . . . . . . . . . Cave-ins Triggered . | . . . . . . . . . Exploration Rate (%) 38 | 3 84 39 60 21 26 22 15 79 Regions Visited 8 Branch Regions 5 Pre-discovered Areas 3 | . . 1 1 . . . . 1 Known Exits Taken . | . . . . . . . . . Unknown Exits Taken 8 | 1 1 1 1 1 1 1 1 . Scrap Searched 6 | . . . . . . . 2 4 Spaces Dug . | . . . . . . . . . Terrain Destroyed 3 | . . . . . . . 3 . Melee . | . . . . . . . . . Projectile 3 | . . . . . . . 3 . AOE . | . . . . . . . . . Terrain Rammed . | . . . . . . . . . Walls Destroyed . | . . . . . . . . . Machines Disabled . | . . . . . . . . . Actions | -11 -10 -10 -10 -9 -8 -7 -7 -6 --------- Run | Yrd Mat Min Exi Min Mat Fac Low Zio Total 3584 | 53 686 217 263 75 267 945 157 921 Wait 249 | . 56 15 48 9 34 56 12 19 Move 3121 | 43 556 197 214 66 200 826 121 898 Hop . | . . . . . . . . . Pick Up 37 | 4 6 . 1 . 7 15 2 2 Fast Attach 23 | 6 3 . . . 5 6 2 1 Attach 12 | . 4 . . . 3 1 4 . Detach . | . . . . . . . . . Swap 13 | . 5 . . . 1 4 3 . Drop 25 | . 1 . . . 4 19 1 . Fire 89 | . 54 5 . . 13 5 12 . Melee 14 | . . . . . . 13 . 1 Ram . | . . . . . . . . . Kick . | . . . . . . . . . Crush 1 | . 1 . . . . . . . Escape Stasis . | . . . . . . . . . Rewire . | . . . . . . . . . Trap . | . . . . . . . . . Miscellaneous . | . . . . . . . . . Route ------- -11/Scrapyard -10/Materials (discovered 5 exits: *Mat x3 / [*Min x2]) -10/Mines -10/Exiles -9/Mines -8/Materials -7/Factory -7/Lower Caves -6/Zion (discovered 1 exit: [*Pro]) History --------- Turn | Location | Event 4 | -11/Scrapyard | Discovered new exit (range 16) 77 | -11/Scrapyard | Entered Materials 77 | -10/Materials | Discovered new exit (range 7) 197 | -10/Materials | Discovered new exit (range 9) 306 | -10/Materials | Build established: Mutant 412 | -10/Materials | Discovered new exit (range 4) 488 | -10/Materials | Discovered new exit (range 16) 772 | -10/Materials | Identified exit to Materials 883 | -10/Materials | Entered Mines 898 | -10/Mines | Learned location of Storage (-8) 924 | -10/Mines | Assisted by bots powering up and referring to "LRC-V3" 1015 | -10/Mines | Core integrity fell below 50% 1083 | -10/Mines | Deemed a non-threat by the Exiles lab entrance 1084 | -10/Mines | Discovered new exit (range 5) 1100 | -10/Mines | Entered Exiles 1100 | -10/Exiles | Accompanied by 3 allies 1122 | -10/Exiles | Met 8R-AWN 1140 | -10/Exiles | Met EX-HEX 1193 | -10/Exiles | Met EX-BIN 1204 | -10/Exiles | Aligned with FarCom system 1205 | -10/Exiles | Given EX-Vault access code 1227 | -10/Exiles | Opened EX-Vault 1233 | -10/Exiles | Found AWS/Thermal 1255 | -10/Exiles | Warned to stay clear of 0b10 Research branches 1280 | -10/Exiles | Met EX-DEC 1284 | -10/Exiles | Learned location of Zion (-6) 1312 | -10/Exiles | Discovered new exit (range 14) 1353 | -10/Exiles | Left Exiles lab with AWS/Thermal 1353 | -10/Exiles | Entered Mines 1353 | -9/Mines | Accompanied by 3 allies 1367 | -9/Mines | Learned 2 Materials zone layouts 1401 | -9/Mines | Discovered new exit (range 15) 1425 | -9/Mines | Entered Materials 1425 | -8/Materials | Accompanied by 3 allies 1425 | -8/Materials | Evolved 4 slots: Propulsion x1, Utility x2, Weapon x1 1588 | -8/Materials | Lost 3 allies 1691 | -8/Materials | Discovered new exit (range 5) 1698 | -8/Materials | Entered Factory 1698 | -7/Factory | Evolved 2 slots: Utility x2 1962 | -7/Factory | Central database locked down 2650 | -7/Factory | Build established: Assassin 2687 | -7/Factory | Discovered new exit (range 14) 2708 | -7/Factory | Entered Lower Caves 2711 | -7/Lower Caves | Spotted B-75 Beast 2772 | -7/Lower Caves | Lost 6 parts (2n3u1w) 2772 | -7/Lower Caves | Destroyed B-75 Beast 2848 | -7/Lower Caves | Attracted the attention of an 0b10 outpost 2897 | -7/Lower Caves | A Derelict revealed a hidden shortcut to a safe place 2909 | -7/Lower Caves | Entered Zion 2931 | -6/Zion | Gained Derelict followers 2998 | -6/Zion | Build established: Mutant 3035 | -6/Zion | Discovered new exit (range 11) 3377 | -6/Zion | Learned Factory emergency access door positions 3940 | -6/Zion | Self-destructed Last Messages --------------- My makeshift parts can't take much of a beating, but they're pretty effective for their mass. 03455_ Acquired Mak. Utility Shielding. 03480_ BD-NZ3(z) fiddles with the Twisted Machinery. 03517_ PUBLIC SERVICE ANNOUNCEMENT: Quarantine Array scanned 1 system, cleaned 0. 03522_ PUBLIC SERVICE ANNOUNCEMENT: Unaware detected at Zion entryway. Avoid the area unless you're armed and dangerous. 03592_ TE-FSX(z) fiddles with the Twisted Machinery. 03623_ Acquired 10 matter. 03722_ 9F-DGA(z) searches inside the Twisted Machinery. 03767_ L6-0PY(z) fiddles with the Twisted Machinery. 03934_ Connecting with Deep Containment System... 03934_ Current location identified: Zion Map ----- +----------------------------------------------------+ | ??????????????????????????????????????????????? | | ??????????????????????????????????????????????? | | ?????????????????????????????????????????###??? | | ????????????????????????????????????????## ##?? | | ???????????????????????????????????????## "#? | | ???????????????????????????????????????# ?? | | ???????????????????????????????????????? ##? | | ???????????????????????????????????????## "## | | ???????????????????????????????????????#" """"" | | ?????????????????????????????????????### """ | | ????????????????????????????????????##""" | | ???????????????????????????????????##"#""" | | ?????????????????????????????????###"""" | | ?????????????????????????????????#"""""" | | ????????????????????????????????###""""" | | ?????????????????????????????####"#" | | ?????????????????????????????#""#""" | | ??????????????????????#####?##"""""" """ | | ??????????????????????#"#"#?#""" """ """""" | | ??????????????????????#"#"###"" "" """#""" | | ??????????????????????#""""#""" " """"#"" | | ??????????????????????" X""##"" """"" | | ??????????????????????# M""#""" """ | | ?????????????????????## """"" """" | | ?????????????????????" g c """#" | | ?????????????????????"@g """""#" | | ?????????????????????# """"""" """""""" | | ??????????????????#"""""""""#"""" """"" | | ??????????????????#"""""""#""""""" """" | | ??????????????????###"####"" """" """ | | ????????????????????##????"" """" """ " | | ??????????????????????????"" """"" """ " | | ???????????????????????????"" """"" """ | | ????????????????????????????" """"" "" | | ????????????????????????????"? """"" | | ?????????????????????????????" """ | | ?????????????????????????????" "" | | ??????????????????????????????" | | ??????????????????????????????"" | | ??????????????????????????????#"" "" | | ??????????????????????????????##"" """" | | ???????????????????????????????#"""""""""""" | | ????????????????????????????????#""#""""""""" | | ????????????????????????????????####""""""""" | | ????????????????????????????##### """" "" | | ???????????????????????????## !!! "" "" | | ???????????????????????????#! " | | ???????????????????????????#!* | | ???????????????????????????### =### """ | | ?????????????????????????????####" """ | +----------------------------------------------------+ Best States ------------- Heat Dissipation 75 Energy Generation 18 Energy Capacity 310 Matter Stores 300 Matter Capacity 300 Sight Range 16 Terrain Scan Range 16 Terrain Scan Density 10 ECM Strength 2 Armor Coverage 150 Utility Shielding 15 Weapon Cycling 15 Evasion (%) 44 Core Analysis 6 Recoil Reduction 2 Item Schematics ----------------- None Robot Schematics ------------------ None Fabricated ------------ Nothing Repaired ---------- Nothing Studied --------- Imp. Light Cannon | -7/Factory | Hacked Hvy. Particle Cannon | -7/Factory | Hacked Alien Tech Used ----------------- None Achievements -------------- Drive-By Challenges ------------ None Game ------ Seed HugeGravityKatana Manual? 0 Play Time 00:24:28 Cumulative 133.0 hours Start 2026.03.19 @ 20:29:47 End 2026.03.19 @ 20:55:09 Sessions 1 Manual Loads 0 Difficulty Rogue Special Mode None Game No. 109 Rogue 109 Adventurer 0 Explorer 0 Win Type - Total 2 Types 2/0/0/0/0/0/0/0/0/0 Lore% 67 Gallery% 56 Achievement% 49 Wizard Run 0 Options --------- Layout 2 ASCII 0 Keyboard 0 Movement Mouse Keybinds 0 Fullscreen 1 Font 24/Smallcaps Map View 50x44 Zoom Use 0% Tactical HUD 1 Map Filters NONE Filters NONE Steam 1 RUN: 12e32385-2373-48f8-ae12-ef2499a5d67d